Cogmind - Beta 16.1 @@@ ROGUE MODE // 2026.02.28 @ 21:50:35 Player: JuustuToug Result: Destroyed by MAIN.C with Heavy Quantum Rifle Performance ------------- Evolutions (9) 4500 Regions Visited (24) 4800 Robots Destroyed (411) 2055 Value Destroyed (19971) 19971 Prototype IDs (65) 1300 Alien Tech Used (1) 200 Bonus (22846) 22846 TOTAL SCORE: 55672 Bonus ------- High Alert Combat Kills 2440 Follower Combat Kills 2847 Network Hubs Disabled 600 Met Zhirov 300 Met Warlord at Base 500 MAIN.C Attacked Warlord 500 Warlord Defense Kills 1922 Built Enhanced Grunts 300 A7 Reached Mainframe 300 Met R17 at Cetus 500 Met R17 at Research 2000 Met Warlord at Research 2000 Scanned by Researcher 500 Acquired SGEMP 2000 Delivered SGEMP 2000 Destroyed MAIN.C Guards 500 Met MAIN.C 5000 Friendly Fire -1363 Cogmind --------- Core Integrity 0/1600 Matter 244/300 Energy 59/150 System Corruption 38% Temperature Cool (9) Movement Walking (177) Ox1 Location -1/Command Parts ------- > --- POWER (2) -------- Micro Antimatter Reactor > --- PROPULSION (5) --- Myomer Leg Biometal Leg > --- UTILITY (15) ----- High-capacity Storage Unit Advanced Signal Interpreter Advanced Targeting Computer Experimental Targeting Computer Core Analyzer Graphene Brace > --- WEAPON (3) ------- Nova Cannon Enhanced Nova Cannon > --- INVENTORY (20) --- Advanced Sensor Array Transdimensional Reconstructor Cooled Phase Cannon Shock Maul Peak State ------------ > --- POWER ------------ Quantum Reactor Quantum Reactor > --- PROPULSION ------- Centrium Leg Centrium Leg Centrium Leg Centrium Leg Centrium Leg > --- UTILITY ---------- Coolant Network High-capacity Storage Unit Advanced Sensor Array Advanced Signal Interpreter Experimental Targeting Computer Core Analyzer Quantum Capacitor Advanced Transmission Jammer Centrium Heavy Armor Plating Heavy Regenerative Plating Graphene Brace > --- WEAPON ----------- Enhanced Nova Cannon Enhanced Nova Cannon Enhanced Nova Cannon > --- INVENTORY -------- Quantum Reactor Quantum Reactor Centrium Leg Centrium Leg Centrium Leg Centrium Leg Centrium Leg Improved Cryofiber Web Improved Phase Shifter Assault Drone Bay Transdimensional Reconstructor Vortex Shotgun Compact HERF Cannon Enhanced Nova Cannon Enhanced Nova Cannon Fusion Bomb Launcher Shock Maul [Rating: 206] Favorites ----------- Power Neutrino Core Engine Ion Engine Power Core Neutrino Core Reactor Quantum Reactor Propulsion Advanced Myomer Leg Treads Light Treads Leg Advanced Myomer Leg Wheel Armored Huge Wheel Hover Unit Antigrav System Utility Core Analyzer Device Improved Sensor Array Storage High-capacity Storage Unit Processor Core Analyzer Hackware Improved Hacking Suite Protection Makeshift Heavy Armor Plating Weapon Advanced KE Penetrator Energy Gun Quantum Rifle Energy Cannon Nova Cannon Ballistic Gun Advanced KE Penetrator Ballistic Cannon Mini Assault Cannon Launcher Fusion Bomb Launcher Special Weapon Improved Remote Datajack Impact Weapon Powered Hammer Slashing Weapon Particle Cleaver Piercing Weapon Plasma Lance Build | -11 -10 -10 -8 -7 -6 -6 -6 -6 -6 -5 -5 -5 -5 -4 -4 -4 -4 -4 -3 -3 -3 -2 -1 -1 ------- Run | Yrd Mat Sub Mat Fac Fac Ext Cet Arc Hub Fac Upp Upp Zhi Pro Fac Upp Upp War Pro Res Tes Res Acc Com Slots Evolved 18 | . . . 4 2 2 . . . . 2 . . . . 2 . . . . 2 . 2 2 . Power 1 | . . . . . . . . . . . . . . . 1 . . . . . . . . . Propulsion 3 | . . . 1 1 1 . . . . . . . . . . . . . . . . . . . Utility 13 | . . . 2 1 1 . . . . 2 . . . . 1 . . . . 2 . 2 2 . Weapon 1 | . . . 1 . . . . . . . . . . . . . . . . . . . . . Parts Attached 375 | 7 9 1 54 36 20 23 10 3 6 5 5 3 5 15 8 2 3 25 3 11 34 36 12 39 Power 51 | 1 2 . 7 3 3 2 2 . . . 1 1 1 2 . . . 5 . 1 4 6 1 9 Engine 11 | 1 2 . 5 2 . 1 . . . . . . . . . . . . . . . . . . Core 12 | . . . 2 1 3 1 . . . . 1 1 . 1 . . . . . 1 1 . . . Reactor 28 | . . . . . . . 2 . . . . . 1 1 . . . 5 . . 3 6 1 9 Propulsion 120 | 2 . 1 20 12 6 7 3 . . 1 1 . 3 5 1 . 2 5 . 2 11 24 1 13 Treads 33 | 2 . . 15 4 2 1 3 . . 1 . . 2 1 1 . 1 . . . . . . . Leg 68 | . . . . 5 4 6 . . . . . . 1 4 . . 1 5 . 2 11 15 1 13 Wheel 18 | . . 1 5 3 . . . . . . 1 . . . . . . . . . . 8 . . Hover 1 | . . . . . . . . . . . . . . . . . . . . . . 1 . . Flight . | . . . . . . . . . . . . . . . . . . . . . . . . . Utility 112 | 2 2 . 10 12 5 10 2 2 4 2 2 1 1 5 5 1 1 7 2 4 14 4 6 8 Device 60 | 1 1 . 5 4 2 4 1 2 2 . 1 . . 2 4 . 1 5 1 4 8 2 4 6 Storage 10 | 1 1 . . 4 . 1 . . . . . . 1 . . . . 1 . . . . 1 . Processor 20 | . . . 2 2 . . . . 1 2 . . . 3 . 1 . 1 . . 3 2 1 2 Hackware 8 | . . . 1 2 2 . . . 1 . . . . . 1 . . . . . 1 . . . Protection 14 | . . . 2 . 1 5 1 . . . 1 1 . . . . . . 1 . 2 . . . Artifact . | . . . . . . . . . . . . . . . . . . . . . . . . . Weapon 92 | 2 5 . 17 9 6 4 3 1 2 2 1 1 . 3 2 1 . 8 1 4 5 2 4 9 Energy Gun 18 | . 1 . 1 2 . 2 2 . . . . . . 1 1 . . 5 1 . 1 . 1 . Energy Cannon 32 | . 1 . 3 2 1 2 . . . 1 . . . 1 1 1 . . . 4 1 2 3 9 Ballistic Gun 29 | 2 3 . 10 4 4 . 1 1 1 . 1 1 . . . . . . . . 1 . . . Ballistic Cannon 1 | . . . . . 1 . . . . . . . . . . . . . . . . . . . Launcher 4 | . . . 2 . . . . . . . . . . 1 . . . . . . 1 . . . Special Weapon 2 | . . . . . . . . . . 1 . . . . . . . 1 . . . . . . Impact Weapon 3 | . . . 1 1 . . . . . . . . . . . . . . . . 1 . . . Slashing Weapon 2 | . . . . . . . . . 1 . . . . . . . . 1 . . . . . . Piercing Weapon 1 | . . . . . . . . . . . . . . . . . . 1 . . . . . . Special Melee Weapon . | . . . . . . . . . . . . . . . . . . . . . . . . . Unidentified Prototypes 39 | . . . 2 3 1 . 4 . . . . . 4 . . . . 10 . 2 10 2 . 1 Corrupted Parts 7 | . . . . . . . . 1 . . . . . . . . . . . . . 5 . 1 System Corruption 21 | . . . . . . . . 3 . . . . . . . . . . . . . 14 . 4 Parts Lost 110 | . 1 . 9 10 5 4 . . . . 1 . . 1 1 1 1 2 . 1 20 2 1 50 Power 17 | . . . 2 . 1 . . . . . . . . . . 1 . . . . 3 . . 10 Propulsion 37 | . . . 3 5 2 1 . . . . . . . 1 . . 1 . . . 9 . . 15 Utility 31 | . . . 3 1 1 2 . . . . 1 . . . 1 . . 1 . 1 4 1 1 14 Weapon 25 | . 1 . 1 4 1 1 . . . . . . . . . . . 1 . . 4 1 . 11 Highest Loss Streak 26 | . 1 . 6 3 5 3 . . . . 1 . . 1 1 1 1 1 . 1 13 2 1 26 To Critical Strikes 2 | . . . . . 2 . . . . . . . . . . . . . . . . . . . Average Backups 15 | 1 7 10 9 13 19 19 19 19 18 18 18 18 19 19 18 18 17 17 18 18 16 14 17 14 Power 1 | . 1 1 . 1 1 1 1 1 1 1 1 . . 1 . . . . 1 1 . 1 1 1 Propulsion 2 | . 1 2 1 . 4 5 2 2 2 3 4 4 4 4 3 3 2 3 4 4 2 2 4 4 Utility 5 | . . 2 1 4 6 7 9 9 9 7 5 5 6 6 7 9 9 8 6 5 7 5 4 1 Weapon 5 | . 3 5 5 6 6 5 6 7 6 6 6 7 6 5 5 4 4 4 5 5 4 4 5 4 Tool/Special . | . . . . . . . . . . . . . . . . . . . . . . . . . Unused Backups 74 | . 6 . 14 6 4 6 3 3 . 1 . . 1 2 4 . . 2 1 5 4 7 2 3 Power 11 | . 2 . 1 1 1 1 1 . . . . . . . . . . . . 1 1 1 1 . Propulsion 11 | . . . 2 . . 1 1 . . . . . . . . . . . . 1 1 5 . . Utility 17 | . . . 2 2 1 4 1 2 . . . . . 1 . . . 1 1 . 1 1 . . Weapon 33 | . 4 . 9 3 2 . . 1 . 1 . . 1 1 3 . . 1 . 3 1 . 1 2 Tool/Special 2 | . . . . . . . . . . . . . . . 1 . . . . . . . . 1 Average Slot Usage (%) 90 | . 99 100 97 99 99 98 87 85 85 87 87 82 64 85 93 93 88 90 94 93 88 79 80 71 Engine 2 | . 14 14 7 5 2 1 . . . . . . . . . . . 1 . . . . . . Core 2 | . . . 1 1 3 4 . . . . 3 5 2 . 9 9 5 2 . 2 3 1 . . Reactor 2 | . . . . . . . 5 6 6 5 1 . 2 4 . . . 3 10 5 4 6 8 6 Treads 11 | . 27 19 23 21 . 3 17 20 20 17 12 11 13 19 . . . . . . . . . . Leg 11 | . . . . 6 31 28 4 . . . . . . 1 25 26 25 26 26 23 22 17 20 18 Wheel 1 | . . 8 2 2 . . . . . . 3 5 3 . . . . . . . . 2 . . Device 13 | . 14 14 16 17 16 17 20 18 7 10 11 5 4 5 9 10 9 11 15 21 17 16 22 15 Storage 6 | . 14 14 9 7 6 6 6 6 6 5 5 5 5 5 5 5 5 6 5 4 4 4 4 4 Processor 11 | . . . 5 12 7 6 6 6 12 16 17 17 17 17 15 15 15 15 15 14 16 17 12 15 Hackware 2 | . . . 1 . 6 3 . . 4 5 5 5 5 5 4 5 5 2 . . . . . . Protection 3 | . . . 1 . . 3 6 6 6 5 5 4 5 4 4 5 5 4 5 4 3 4 4 2 Energy Gun 2 | . 2 . 1 4 . 2 13 13 4 . . . . . 1 5 5 7 9 3 1 . . . Energy Cannon 6 | . 6 . 7 3 6 6 5 6 1 4 5 5 . 4 5 8 9 6 5 10 7 6 8 8 Ballistic Gun 8 | . 19 28 18 12 12 9 . . 9 10 10 11 . 10 8 1 . . . . . . . . Peak Build Rating 206 | 7 10 11 36 53 63 71 113 113 112 117 116 103 114 118 121 121 119 150 138 153 160 188 201 206 Average Rating 91 | 5 7 10 23 44 58 63 99 111 107 115 106 100 85 108 117 118 111 127 134 142 148 162 186 149 On Entrance 93 | . 7 10 11 35 46 61 69 113 111 108 116 102 100 114 107 118 113 110 137 128 153 115 170 190 Avg Prop Armor Cover (%) 8 | . . 11 14 17 6 6 . . . . 6 4 5 5 3 . . 3 . . . 3 . . Naked Turns . | . . . . . . . . . . . . . . . . . . . . . . . . . Heaviest Build 152 | 13 22 22 36 69 71 79 89 89 88 89 89 96 100 104 117 118 104 121 117 128 125 142 152 146 Greatest Support 190 | 40 40 40 63 96 93 80 190 190 190 190 190 110 190 190 135 135 135 143 143 143 141 150 150 150 Greatest Overweight (x) 7 | . . 1 7 4 . 1 1 . . . 3 . 2 . 1 . . . . . 2 7 1 . Average Overweight (x) . | . . . . 1 . . . . . . . . . . . . . . . . . . . . Largest Inventory Capacity 20 | 8 10 10 10 20 20 20 20 20 20 20 20 20 20 20 20 20 20 20 20 20 20 20 20 20 Average Capacity 17 | 7 9 10 10 16 20 20 20 20 20 20 20 20 20 20 20 20 20 20 20 20 20 20 20 20 Most Carried 20 | 2 10 10 10 20 20 20 20 20 20 20 20 20 20 20 20 20 20 20 20 20 20 20 20 20 Average Carried 16 | 1 7 10 9 13 19 19 19 19 19 19 19 19 19 19 19 20 19 19 19 19 19 18 18 14 Final Capacity 20 | 8 10 10 10 20 20 20 20 20 20 20 20 20 20 20 20 20 20 20 20 20 20 20 20 20 Final Carried 20 | 2 10 10 10 19 19 20 20 20 19 20 20 20 20 20 20 20 19 19 20 20 19 20 20 4 Class Distribution -------------------- 20% | Scavenger-Gunner 16% | Mutant 12% | Scavenger-Tank 11% | Skirmisher 10% | Scavenger-Skirmisher 6% | Commander-Tank 5% | Gunner 4% | Scavenger-Mutant 3% | Commander-Skirmisher Dominant Class ---------------- Mutant | -10/Materials Mutant | -10/Subcaves Scavenger-Gunner | -8/Materials Scavenger-Gunner | -7/Factory Scavenger-Gunner | -6/Factory Scavenger-Gunner | -6/Extension Commander-Tank | -6/Cetus Commander-Tank | -6/Archives Commander-Tank | -6/Hub_04(d) Scavenger-Skirmisher | -5/Factory Scavenger-Skirmisher | -5/Upper Caves Scavenger-Tank | -5/Upper Caves Mutant | -5/Zhirov Scavenger-Tank | -4/Proximity Caves Commander-Skirmisher | -4/Factory Skirmisher | -4/Upper Caves Skirmisher | -4/Upper Caves Commander-Skirmisher | -4/Warlord Scavenger-Skirmisher | -3/Proximity Caves Derelict-Skirmisher | -3/Research Scientist-Gunner | -3/Testing Scavenger-Mutant | -2/Research Mutant | -1/Access Mutant | -1/Command Resources | -11 -10 -10 -8 -7 -6 -6 -6 -6 -6 -5 -5 -5 -5 -4 -4 -4 -4 -4 -3 -3 -3 -2 -1 -1 ----------- Run | Yrd Mat Sub Mat Fac Fac Ext Cet Arc Hub Fac Upp Upp Zhi Pro Fac Upp Upp War Pro Res Tes Res Acc Com Matter Collected 12288 | 255 528 38 1564 1761 536 535 269 78 90 667 271 191 . 1509 371 151 248 314 186 178 959 601 405 583 Remotely . | . . . . . . . . . . . . . . . . . . . . . . . . . Salvage Created 18443 | 71 748 49 1922 2221 662 590 252 358 . 1167 470 88 . 1596 414 168 370 742 . 596 1773 1091 1185 1910 Parts 893 | 11 44 2 130 105 34 37 6 22 . 51 13 2 . 76 22 2 8 21 . 32 82 38 63 92 Haulers Intercepted 6 | . . . 4 1 . . . . . 1 . . . . . . . . . . . . . . Recyclers Shooed 8 | 1 . . 1 . 3 1 . . . . . . . . . . . . . 1 1 . . . Parts Field Recycled . | . . . . . . . . . . . . . . . . . . . . . . . . . Retrieved Matter . | . . . . . . . . . . . . . . . . . . . . . . . . . Parts Self-Destructed 87 | . . . . . . . . . . . 7 1 . 75 . 1 3 . . . . . . . Prevented 2 | . . . . . . . . . . . 2 . . . . . . . . . . . . . Parts Restored . | . . . . . . . . . . . . . . . . . . . . . . . . . Kills | -11 -10 -10 -8 -7 -6 -6 -6 -6 -6 -5 -5 -5 -5 -4 -4 -4 -4 -4 -3 -3 -3 -2 -1 -1 ------- Run | Yrd Mat Sub Mat Fac Fac Ext Cet Arc Hub Fac Upp Upp Zhi Pro Fac Upp Upp War Pro Res Tes Res Acc Com Combat Hostiles Destroyed 303 | . 19 1 40 33 5 9 4 2 . 18 4 . . 32 8 3 9 12 2 10 19 14 23 36 Melee 1 | . . . 1 . . . . . . . . . . . . . . . . . . . . . Guns 96 | . 18 1 20 21 4 5 1 . . 8 1 . . 11 . . 1 1 . 2 . . . 2 Cannons 102 | . 1 . 10 9 1 4 1 1 . 1 3 . . 4 4 . . 9 . 4 13 10 7 20 AOE 83 | . . . 8 3 . . . . . 8 . . . 17 4 3 8 . 2 4 . 3 14 9 Classes Destroyed 26 | 1 4 1 9 1 . . . . . . 1 . . 2 . . . 3 1 . 2 . . 1 Worker 25 | . 1 . 5 9 1 . . . . 2 . . . . 1 . . . . 1 2 . 3 . Builder 11 | . . . 1 2 . . . . . . . . . . . . . . . 3 2 . 3 . Tunneler 9 | 3 . . 3 1 . . . . . 1 . . . . . . . . . . . . 1 . Hauler 6 | . . . 4 1 . . . . . 1 . . . . . . . . . . . . . . Recycler 20 | . . . 2 6 2 . . . . 1 . . . 2 1 . . . . . 2 2 1 1 Minesweeper 1 | . . . . . . . . . . . . . . 1 . . . . . . . . . . Mechanic 2 | . . . 1 . 1 . . . . . . . . . . . . . . . . . . . Operator 9 | . . . 1 . . 1 . 6 . . . . . . . . . . . 1 . . . . Drone 2 | . . . . . . . . . . . . . . . . . . . 2 . . . . . Watcher 18 | . 3 . 2 3 . . . . . 3 . . . 2 1 . . . . . 2 1 1 . Swarmer 72 | . 5 . 15 . . . . . . 4 . . . 17 5 . 2 . . . . 6 12 6 Grunt 94 | . 14 . 12 16 . 1 . . . 6 4 . . 6 . 3 6 5 . 5 2 3 3 8 Brawler 4 | . . . 1 . . . . . . . . . . 1 . . . 1 . . . . 1 . Duelist 3 | . . . . . . . . . . . . . . 1 . . . . . . . 1 1 . Researcher 2 | . . . . . . . . . . . . . . . . . . . . . 2 . . . Sentry 36 | . . . 9 6 1 7 . 2 . 2 . . . 6 . . 1 . . 1 . . 1 . Demolisher 3 | . . . . . . . . . . . . . . . . . . 1 . . . 2 . . Hunter 39 | . . . 2 5 3 . . . . 2 . . . 3 . . . 2 . 4 8 . 3 7 Programmer 35 | . . . . 6 1 1 . . . 4 . . . . 3 . . 1 . . 6 1 2 10 Heavy 1 | . . . 1 . . . . . . . . . . . . . . . . . . . . . Behemoth 1 | . . . . . . . . . . . . . . . . . . . . . . . . 1 Cetus Guard 4 | . . . . . . . 4 . . . . . . . . . . . . . . . . . M Guard 2 | . . . . . . . . . . . . . . . . . . . . . . . . 2 Combat Programmer 2 | . . . . . . . . . . . . . . . . . . . . . . . . 2 Striker 4 | . . . . . . . . . . . . . . . . . . 1 . . 2 1 . . Executioner 2 | . . . . . . . . . . . . . . . . . . 2 . . . . . . Alpha 7 1 | . . . . . . . . . . . . . . . . . . . . . 1 . . . Subdweller 1 | . . 1 . . . . . . . . . . . . . . . . . . . . . . Decomposer 3 | . . . . . . . . . . . 1 1 . . . 1 . . . . . . . . Packrat 1 | . . . . . . . . . . . 1 . . . . . . . . . . . . . Samaritan 2 | . . . . . . . . . . . 1 . . . . . 1 . . . . . . . Savage 1 | . . . . . . . . . . . 1 . . . . . . . . . . . . . Best Kill Streak 10 | 3 3 1 10 8 2 3 2 2 . 7 4 . . 9 5 3 5 3 2 10 5 5 9 9 Combat Bots Only 9 | . 3 1 8 4 2 3 2 2 . 5 4 . . 9 5 3 5 3 2 6 3 5 7 9 Max Kills in Single Turn 6 | 1 2 1 3 5 1 1 1 1 . 4 1 1 . 4 3 3 3 1 1 3 1 2 6 5 Gunslinging 1 | . 1 . . . . . . . . . . . . . . . . . . . . . . . Exploded 5 | . . . 2 1 . . . . . 4 . . . 4 3 3 3 . 1 2 . 2 5 5 Melee 1 | . . . 1 . . . . . . . . . . . . . . . . . . . . . Uniques/NPCs Destroyed 1 | . . . . . . . . . . . . . . . . . . . . . . 1 . . Warlord (-2/Research) Combat | -11 -10 -10 -8 -7 -6 -6 -6 -6 -6 -5 -5 -5 -5 -4 -4 -4 -4 -4 -3 -3 -3 -2 -1 -1 -------- Run | Yrd Mat Sub Mat Fac Fac Ext Cet Arc Hub Fac Upp Upp Zhi Pro Fac Upp Upp War Pro Res Tes Res Acc Com Hostile Shots Fired 2691 | . 85 8 188 299 90 232 34 17 20 78 31 . . 143 56 20 34 81 . 75 419 55 122 604 Missed 896 | . 13 3 52 108 23 86 13 7 4 26 4 . . 36 19 9 12 30 . 25 156 23 52 195 Deflected 3 | . . . . . . . . . . . . . . . . . . . . 3 . . . . Hits 1795 | . 72 5 136 191 67 146 21 10 16 52 27 . . 107 37 11 22 51 . 50 263 32 70 409 Melee 29 | . . . 5 . . . . . . . . . . 4 . . . . . . 19 1 . . Projectile 1766 | . 72 5 131 191 67 146 21 10 16 52 27 . . 103 37 11 22 51 . 50 244 31 70 409 AOE 33 | . . . . 1 . . . . . 1 . . . . 2 . . 4 . . 2 6 . 17 Critical Strikes 81 | . . . 7 1 4 1 3 1 2 4 1 . . 8 3 2 . 2 . 3 20 1 3 15 Actively Blocked 22 | . . . . . . . . 1 . . . . . . . . . . . . 3 . 3 15 Part Disruptions 30 | . . . . . . . . . . . . . . . 2 . . 1 . . 2 . . 25 Damage Taken 38502 | . 815 106 2285 2548 1052 1282 475 235 291 1039 519 . . 2331 803 217 464 1519 120 994 6258 1171 1459 12519 Core 3850 | . 146 20 239 214 86 90 32 . 40 97 22 . . 195 52 . 21 174 . 23 653 131 92 1523 Absorbed by Shields 523 | . . . . . . 69 153 . . . . . . . 88 . . 149 . . 64 . . . Reduced by Siege Mode 166 | . . . . . . . . . . . 15 . . 151 . . . . . . . . . . Redirected to Shielding 11 | . . . 11 . . . . . . . . . . . . . . . . . . . . . Regen/Repaired (Parts) 3743 | . 199 . . . . . . . . . . . . . 681 . . 155 . . 910 1009 513 276 Core Remaining (%) 68 | 100 . 33 56 69 . . . . 70 . . . . 68 . . . . 78 . 48 90 . . Volleys Fired 1439 | 9 79 10 106 103 31 41 11 22 . 60 18 6 . 66 21 50 13 105 20 52 212 84 98 222 Largest 3 | 2 2 2 3 3 3 3 3 3 . 3 3 3 . 3 3 3 3 3 1 3 1 2 2 3 Hottest 360 | 40 80 46 126 183 136 246 251 245 . 155 155 155 . 155 219 219 289 278 90 268 113 226 240 360 Shots Fired 2376 | 18 158 21 291 265 92 106 31 64 . 136 56 20 . 171 47 52 23 107 20 77 212 82 100 227 Gun 1065 | 18 135 21 200 197 61 66 21 42 . 78 37 13 . 105 26 2 6 4 . 12 2 . . 19 Cannon 1208 | . 23 . 78 51 31 32 10 22 . 53 19 7 . 52 19 47 10 90 17 62 210 79 93 203 Launcher 91 | . . . 13 17 . 8 . . . 5 . . . 14 2 3 7 1 3 3 . 3 7 5 Special 12 | . . . . . . . . . . . . . . . . . . 12 . . . . . . Kinetic 872 | 18 114 21 194 157 61 56 . . . 78 37 13 . 105 17 1 . . . . . . . . Thermal 1362 | . 44 . 84 91 31 42 31 64 . 53 19 7 . 52 28 48 16 92 17 74 212 79 93 185 Explosive 91 | . . . 13 17 . 8 . . . 5 . . . 14 2 3 7 1 3 3 . 3 7 5 Electromagnetic 18 | . . . . . . . . . . . . . . . . . . . . . . . . 18 Entropic 21 | . . . . . . . . . . . . . . . . . . 2 . . . . . 19 Robot Hit Streak 31 | 5 17 14 18 9 8 15 22 25 . 18 8 11 . 31 8 2 6 14 . 5 23 28 27 31 Robot Miss Streak 6 | 3 4 1 6 6 4 2 1 4 . 6 2 . . 4 2 . 1 4 3 5 3 2 1 3 Penetration Max 1 | . . . . 1 1 1 . . . . 1 . . 1 . . . . . . . . . . Secondary Targets 8 | . 3 . 2 3 . . . . . . . . . . . . . . . . . . . . Max Gunslinging Chain 1 | . 1 . 1 1 . . . . . . . . . . . . . . . . . . . . Capacitor 678 | . . . . . . . . . . . . . . . . . . 89 17 22 212 77 89 172 Shots Hit Robots 1431 | 8 110 16 169 151 49 71 28 44 . 73 30 5 . 101 24 1 12 70 . 34 122 64 56 193 Core Hits 792 | 4 42 2 87 110 18 32 11 16 . 50 15 2 . 76 14 7 17 29 1 31 43 32 55 98 Critical Kills 26 | . . . 2 . 1 . . . . 7 . . . 6 . . . 1 . 1 6 1 . 1 Critical Parts Destroyed 20 | . . . . . 1 . . . . 7 2 . . 8 2 . . . . . . . . . Critical Strikes 51 | . . . 2 1 2 . 2 . . 14 2 . . 16 2 . . 1 . 1 6 1 . 1 Burn 3 | . . . . 1 . . 2 . . . . . . . . . . . . . . . . . Meltdown 11 | . . . 1 . . . . . . 1 . . . . . . . 1 . . 6 1 . 1 Destroy 37 | . . . 1 . 2 . . . . 13 2 . . 16 2 . . . . 1 . . . . Melee Attacks 16 | . . . 1 7 . . . . 4 . . . . . . . . . . . 4 . . . Impact 8 | . . . 1 7 . . . . . . . . . . . . . . . . . . . . Slashing 8 | . . . . . . . . . 4 . . . . . . . . . . . 4 . . . Piercing . | . . . . . . . . . . . . . . . . . . . . . . . . . Sneak Attacks 2 | . . . . . . . . . . . . . . . . . . . . . 2 . . . Combat Hostiles . | . . . . . . . . . . . . . . . . . . . . . . . . . Follow-up Attacks . | . . . . . . . . . . . . . . . . . . . . . . . . . Damage Inflicted 57390 | 113 1432 236 4169 4603 1032 1591 702 1329 14 2850 852 127 . 5742 1376 501 1685 2665 226 2201 5504 3035 4834 10571 Guns 14406 | 113 1181 236 1783 2442 559 946 428 873 . 1247 518 69 . 1802 478 29 82 55 . 216 27 . . 1322 Cannons 28522 | . 246 . 1454 925 473 645 274 456 . 888 334 58 . 1091 418 . 247 2421 . 961 5007 2638 2441 7545 Explosions 13929 | . . . 895 1232 . . . . . 715 . . . 2849 480 472 1356 189 226 1023 . 397 2391 1704 Melee 370 | . . . . . . . . . . . . . . . . . . . . . 370 . . . Ramming 163 | . 5 . 37 4 . . . . 14 . . . . . . . . . . 1 100 . 2 . Kinetic 9970 | 113 1023 236 1683 1636 559 797 . . . 1247 518 69 . 1802 287 . . . . . . . . . Thermal 31699 | . 404 . 1554 2190 473 794 702 1329 . 888 334 58 . 1091 609 29 329 2476 . 1177 5034 2638 2441 7149 Explosive 13470 | . . . 895 773 . . . . . 715 . . . 2849 480 472 1356 189 226 1023 . 397 2391 1704 Electromagnetic 396 | . . . . . . . . . . . . . . . . . . . . . . . . 396 Impact . | . . . . . . . . . . . . . . . . . . . . . . . . . Slashing 370 | . . . . . . . . . . . . . . . . . . . . . 370 . . . Piercing . | . . . . . . . . . . . . . . . . . . . . . . . . . Entropic 1322 | . . . . . . . . . . . . . . . . . . . . . . . . 1322 Highest Corruption 38 | . 5 5 3 7 2 4 4 7 . 6 6 6 6 6 4 . . 3 3 2 26 14 2 38 Average Corruption 5 | . 4 5 3 5 1 2 4 3 . 2 6 6 6 6 1 . . 2 3 2 5 13 1 11 Corruption Purged 11 | . . . . . . . . 7 . . . . . . 4 . . . . . . . . . Corruption Blocked . | . . . . . . . . . . . . . . . . . . . . . . . . . Effects 443 | . 12 6 34 71 9 24 14 6 . 9 28 32 6 44 6 . . 6 6 5 46 29 . 50 Message Errors 112 | . 6 1 12 17 3 7 3 1 . 3 8 11 2 8 1 . . 2 2 2 10 3 . 10 Matter Fused 93 | . 3 1 12 10 2 5 4 2 . 1 6 9 1 11 1 . . . 1 . 9 7 . 8 Heat Flow Errors 53 | . . . 2 10 2 4 3 2 . 3 4 3 . 3 1 . . 1 . 1 5 3 . 6 Energy Discharges 40 | . . 1 . 6 1 2 2 . . . 2 4 2 5 . . . . 2 . 5 4 . 4 Parts Rejected 8 | . . . 1 2 . . . . . . 1 . . . . . . . . 1 2 . . 1 Parts Fused 7 | . . . . 3 . . . . . . 1 . . 1 . . . . . . 1 . . 1 Data Loss (minor) 60 | . 2 2 4 12 . 4 2 . . 2 2 1 1 7 3 . . . 1 . 3 6 . 8 Data Loss (major) 15 | . 1 . 1 2 . . . 1 . . 2 1 . 2 . . . 1 . . 2 1 . 1 Misfires 14 | . . 1 . 2 . 1 . . . . 2 2 . 3 . . . . . . 3 . . . Alerts 13 | . . . 1 3 . . . . . . . 1 . 3 . . . 2 . . 1 1 . 1 Misdirections 4 | . . . . . . . . . . . . . . . . . . . . . 2 1 . 1 Weapon Failures 24 | . . . 1 4 1 1 . . . . . . . 1 . . . . . 1 3 3 . 9 Overload Shots 20 | . . . . . . . 1 . . . . . . . . . . . . . . . . 19 Effects 1 | . . . . . . . . . . . . . . . . . . . . . . . . 1 Heat Surge 1 | . . . . . . . . . . . . . . . . . . . . . . . . 1 Overflow Damage 1803 | . 2 . 37 176 3 . . 21 . 6 . 17 . 155 90 60 129 37 130 96 354 103 219 168 Projectiles 607 | . 2 . 10 58 3 . . 21 . 6 . 17 . 12 22 . 9 22 . 6 134 103 114 68 Explosions 976 | . . . 27 118 . . . . . . . . . 143 68 60 120 15 130 90 . . 105 100 Melee 220 | . . . . . . . . . . . . . . . . . . . . . 220 . . . Knockbacks 3 | . . . . . . . . . . . . . . . . . . . . . 3 . . . Impact 3 | . . . . . . . . . . . . . . . . . . . . . 3 . . . Kinetic . | . . . . . . . . . . . . . . . . . . . . . . . . . Secondary . | . . . . . . . . . . . . . . . . . . . . . . . . . Self-Inflicted Damage 663 | . . . 170 174 . 12 . . . . . . . 29 112 . . . 121 33 . . . 12 Shots 23 | . . . 8 6 . 2 . . . . . . . 1 2 . . . 2 1 . . . 1 Rammed 10 | . 2 . 6 1 . . . . 1 . . . . . . . . . . . . . . . Targets Rammed 19 | . 2 . 7 2 . . . . 1 . . . . . . . . . . 1 5 . 1 . Kicked 7 | . . . . . . . . . . . . . . . . . . . . 1 5 . 1 . Crushed 2 | . . . 1 1 . . . . . . . . . . . . . . . . . . . . Highest Temperature 449 | . 132 . 449 144 288 39 244 329 12 243 221 270 . 236 217 160 291 103 245 231 364 159 . 305 Average Temperature 77 | . 40 . 84 49 126 39 84 121 12 45 93 85 . 41 72 45 140 26 105 79 103 68 . 98 Received Heat Transfer 4439 | . 396 30 684 624 12 435 87 54 45 90 189 . . 306 64 9 108 126 . 69 328 45 9 729 Effects 5 | . . . 1 . . . . . . . . . . . . . . . . . 3 . . 1 Energy Bleed 3 | . . . 1 . . . . . . . . . . . . . . . . . 2 . . . Interference 2 | . . . . . . . . . . . . . . . . . . . . . 1 . . 1 Siege Activations 6 | . . . . . . . . . . . 1 . . 5 . . . . . . . . . . Total Turns 146 | . . . . . . . . . . . 24 . . 122 . . . . . . . . . . Longest Duration 35 | . . . . . . . . . . . 24 . . 35 . . . . . . . . . . Martial Activations . | . . . . . . . . . . . . . . . . . . . . . . . . . Shielding Activations 2 | . . . . . . . . . . . . . . . . . . . . 1 1 . . . Total Turns 55 | . . . . . . . . . . . . . . . . . . . . 29 26 . . . Longest Duration 29 | . . . . . . . . . . . . . . . . . . . . 29 26 . . . Robots Disrupted . | . . . . . . . . . . . . . . . . . . . . . . . . . Combat Hostiles . | . . . . . . . . . . . . . . . . . . . . . . . . . Robots Corrupted 4 | . . . . . . . . . . . . . . . . . . . . . . . . 4 Combat Hostiles 4 | . . . . . . . . . . . . . . . . . . . . . . . . 4 Parts Fried 3 | . . . . . . 1 . . . . . . . . . . . . . . . . . 2 Impact Corruptions 2 | . . . . . . . . . . . . . . . . . . . . . 2 . . . Robots Melted 17 | . . . 1 . . . 2 1 . 1 . . . . . . . 2 . . 6 1 2 1 Combat Hostiles 17 | . . . 1 . . . 2 1 . 1 . . . . . . . 2 . . 6 1 2 1 Parts Melted 76 | . 1 . 5 1 2 3 5 5 . 4 . . . . 2 . . 7 . 3 18 9 7 4 Heat Transferred 31409 | . 868 . 2405 2918 809 1637 1353 1702 . 999 407 74 . 1313 681 37 370 2295 . 1317 4625 2377 2146 3076 Parts Sabotaged . | . . . . . . . . . . . . . . . . . . . . . . . . . Parts Stolen . | . . . . . . . . . . . . . . . . . . . . . . . . . Parts Stripped . | . . . . . . . . . . . . . . . . . . . . . . . . . Power Chain Reactions . | . . . . . . . . . . . . . . . . . . . . . . . . . Alert | -11 -10 -10 -8 -7 -6 -6 -6 -6 -6 -5 -5 -5 -5 -4 -4 -4 -4 -4 -3 -3 -3 -2 -1 -1 ------- Run | Yrd Mat Sub Mat Fac Fac Ext Cet Arc Hub Fac Upp Upp Zhi Pro Fac Upp Upp War Pro Res Tes Res Acc Com Maximum Alert Level 3 | . 1 . 3 3 2 1 . . 1 2 . . . . 1 . . . . 1 2 1 3 3 Low Security (%) 48 | 100 85 . 8 16 . 98 100 100 62 73 . . . . 26 . . . . 84 77 84 16 . Level 1 29 | . 14 . 64 37 85 1 . . 37 10 . . . . 73 . . . . 15 22 15 5 . Level 2 9 | . . . 23 15 14 . . . . 15 . . . . . . . . . . . . 35 4 Level 3 13 | . . . 3 30 . . . . . . . . . . . . . . . . . . 42 95 Level 4 . | . . . . . . . . . . . . . . . . . . . . . . . . . Level 5 . | . . . . . . . . . . . . . . . . . . . . . . . . . High Security . | . . . . . . . . . . . . . . . . . . . . . . . . . Max Security . | . . . . . . . . . . . . . . . . . . . . . . . . . Peak Influence 981 | 15 235 . 720 938 457 215 186 188 319 451 . . . . 365 . . . . 323 406 251 971 981 Initial 605 | . . . . 324 457 127 42 33 26 112 . . . . 274 . . . . 150 171 216 137 605 Average 301 | 1 137 . 363 475 342 102 104 138 129 163 . . . . 241 . . . . 162 167 145 595 847 Influence Increases 13396 | 15 648 . 1431 1411 209 776 360 261 556 833 90 5 . 969 663 70 190 746 10 601 968 450 1154 980 Destroy 0b10 Robot/C 7140 | . 380 . 800 660 100 400 160 80 160 360 80 . . 760 280 60 180 480 . 200 420 280 580 720 Destroy 0b10 Robot/NC 570 | 15 20 . 95 110 20 10 10 30 . 40 . 5 . 30 40 . . 5 10 25 40 15 45 5 Destroy Leader 1218 | . 86 . 212 226 40 52 . . 30 78 10 . . 40 66 10 10 . . 50 34 62 92 120 Allied During Kill 1020 | . . . . . . 192 170 110 188 . . . . 139 96 . . 81 . . . . 44 . Successful Hack 483 | . 24 . 55 59 . 84 . . 5 74 . . . . 59 . . . . 56 16 . 24 27 Select Force Hacks 240 | . 60 . 30 . . . . . 150 . . . . . . . . . . . . . . . Disable Machine 795 | . 15 . 90 225 45 15 15 30 . 150 . . . . 30 . . . . 30 75 . 75 . Anti-Garrison Action 150 | . . . . . . . . . . . . . . . . . . . . . 150 . . . Destroy Structure 1135 | . 3 . 104 116 4 23 5 11 8 116 . . . . 92 . . . . 90 128 78 249 108 Advance Influence 150 | . . . . . . . . . . . . . . . . . . . . 150 . . . . Partial Spotted 15 | . . . . 15 . . . . . . . . . . . . . . . . . . . . Lose Combat Pursuer 480 | . 60 . 45 . . . . . 15 15 . . . . . . . 180 . . 105 15 45 . Influence Decreases 12763 | 15 550 98 718 1190 883 959 353 269 401 656 498 5 . 533 832 337 190 252 504 296 887 606 437 1294 Entered New Map 2949 | . . 48 . 389 477 133 35 51 50 119 152 . . . 162 100 . . 494 . 134 170 93 342 Time Decay 7638 | 15 540 50 628 701 356 476 278 198 131 431 336 5 . 483 410 237 180 172 10 286 553 416 294 452 Lost Part 1090 | . 10 . 90 100 50 40 . . . . 10 . . 10 10 . 10 20 . 10 200 20 10 500 Lost Ally 680 | . . . . . . 160 40 20 220 . . . . 40 100 . . 60 . . . . 40 . Purge Threat 406 | . . . . . . 150 . . . 106 . . . . 150 . . . . . . . . . Squads Dispatched 73 | . 5 . 9 17 1 2 . . 6 5 . . . 1 2 . . . . 6 9 1 4 5 Investigation 20 | . 3 . 4 4 . . . . 4 1 . . . 1 . . . . . 1 1 . . 1 Extermination 19 | . . . . 6 1 . . . . 3 . . . . 2 . . . . . 3 . 2 2 Reinforcement 25 | . 2 . 3 5 . 2 . . . 1 . . . . . . . . . 5 3 1 2 1 Assault 8 | . . . 2 1 . . . . 2 . . . . . . . . . . . 2 . . 1 Garrison 1 | . . . . 1 . . . . . . . . . . . . . . . . . . . . Intercept . | . . . . . . . . . . . . . . . . . . . . . . . . . Searches Triggered . | . . . . . . . . . . . . . . . . . . . . . . . . . Construction Impeded 3 | . . . . 2 . 1 . . . . . . . . . . . . . . . . . . Haulers Reinforced 5 | . . . . 1 . . . . . 1 . . . . . . . . . 3 . . . . Active Scanning Responses . | . . . . . . . . . . . . . . . . . . . . . . . . . Cargo Convoy Interrupts . | . . . . . . . . . . . . . . . . . . . . . . . . . Stealth | -11 -10 -10 -8 -7 -6 -6 -6 -6 -6 -5 -5 -5 -5 -4 -4 -4 -4 -4 -3 -3 -3 -2 -1 -1 --------- Run | Yrd Mat Sub Mat Fac Fac Ext Cet Arc Hub Fac Upp Upp Zhi Pro Fac Upp Upp War Pro Res Tes Res Acc Com Distress Signals 37 | . . . 4 1 1 1 2 . 1 3 . . . 1 2 . . 2 . 5 1 9 3 1 Communications Jammed 84 | . . . . . . . . . . . . . . . . . . . . 1 17 . 65 1 Distress Signals 68 | . . . . . . . . . . . . . . . . . . . . 1 2 . 64 1 Times Spotted 560 | . 33 1 54 42 10 21 10 13 14 28 4 . . 32 16 5 8 96 2 22 48 23 37 41 Peak Tracking Total 21 | . 3 1 6 3 3 4 5 2 9 5 4 . . 7 5 3 5 21 1 5 12 4 8 7 Tactical Retreats 18 | . 3 . 3 . . . . . 1 1 . . . . . . . 4 . . 3 1 2 . Traps | -11 -10 -10 -8 -7 -6 -6 -6 -6 -6 -5 -5 -5 -5 -4 -4 -4 -4 -4 -3 -3 -3 -2 -1 -1 ------- Run | Yrd Mat Sub Mat Fac Fac Ext Cet Arc Hub Fac Upp Upp Zhi Pro Fac Upp Upp War Pro Res Tes Res Acc Com Traps Triggered 18 | . 4 . 2 3 . . . . . . . . . . . . . . . 1 7 . . 1 Indirectly . | . . . . . . . . . . . . . . . . . . . . . . . . . Trap Hack Attempts . | . . . . . . . . . . . . . . . . . . . . . . . . . Triggered . | . . . . . . . . . . . . . . . . . . . . . . . . . Disarmed . | . . . . . . . . . . . . . . . . . . . . . . . . . Reprogrammed . | . . . . . . . . . . . . . . . . . . . . . . . . . Reused . | . . . . . . . . . . . . . . . . . . . . . . . . . Traps Extracted . | . . . . . . . . . . . . . . . . . . . . . . . . . Installed . | . . . . . . . . . . . . . . . . . . . . . . . . . Triggered . | . . . . . . . . . . . . . . . . . . . . . . . . . Machines | -11 -10 -10 -8 -7 -6 -6 -6 -6 -6 -5 -5 -5 -5 -4 -4 -4 -4 -4 -3 -3 -3 -2 -1 -1 ---------- Run | Yrd Mat Sub Mat Fac Fac Ext Cet Arc Hub Fac Upp Upp Zhi Pro Fac Upp Upp War Pro Res Tes Res Acc Com Machines Disabled 65 | . 1 . 6 15 3 2 1 2 . 10 . . . 7 2 1 . 2 . 2 6 . 5 . Max in Single Turn 12 | . 1 . 1 12 1 1 1 1 . 2 . . . 3 1 1 . 1 . 1 1 . 1 . Garrison Access 6 | . . . 1 1 . . . . 1 . . . . . 1 . . . . . 1 1 . . Network Hub 3 | . . . . . . . . . 3 . . . . . . . . . . . . . . . Machines Repaired . | . . . . . . . . . . . . . . . . . . . . . . . . . Machines Dismantled . | . . . . . . . . . . . . . . . . . . . . . . . . . Machines Sabotaged 3 | . . . . . . . . . 3 . . . . . . . . . . . . . . . Overloaded Fab Kills . | . . . . . . . . . . . . . . . . . . . . . . . . . Hacking | -11 -10 -10 -8 -7 -6 -6 -6 -6 -6 -5 -5 -5 -5 -4 -4 -4 -4 -4 -3 -3 -3 -2 -1 -1 --------- Run | Yrd Mat Sub Mat Fac Fac Ext Cet Arc Hub Fac Upp Upp Zhi Pro Fac Upp Upp War Pro Res Tes Res Acc Com Machines Accessed 109 | . 10 . 10 13 3 18 1 . 7 7 1 2 4 2 7 1 . 2 . 7 9 . 3 2 Terminals 74 | . 7 . 6 8 3 18 1 . 6 4 . . . 1 4 . . . . 7 7 . . 2 Fabricators 5 | . . . . 1 . . . . . 2 . . . 1 . . . . . . 1 . . . Repair Stations 5 | . 1 . 1 2 . . . . . . . . . . 1 . . . . . . . . . Recycling Units 3 | . 2 . 1 . . . . . . . . . . . . . . . . . . . . . Scanalyzers 5 | . . . 1 . . . . . . 1 . . . . 1 . . . . . 1 . 1 . Garrison Access 7 | . . . 1 2 . . . . 1 . . . . . 1 . . . . . . . 2 . Total Hacks 313 | . 24 . 26 28 8 38 1 . 15 47 1 6 17 5 33 1 . 6 . 18 29 . 6 4 Successful 159 | . 16 . 13 7 5 18 . . 6 22 1 6 17 3 21 1 . 6 . 5 9 . 1 2 Failed 152 | . 8 . 12 21 3 20 1 . 9 25 . . . 2 11 . . . . 13 20 . 5 2 Catastrophic 31 | . 1 . 1 4 . 5 . . 3 3 . . . . 2 . . . . 4 6 . 2 . Database Lockouts 2 | . . . 1 . . . . . . . . . . . 1 . . . . . . . . . Manual 129 | . 17 . 14 17 7 11 1 . 14 21 . . . . 11 . . . . 7 9 . . . Terminals 216 | . 18 . 18 20 8 38 1 . 14 39 . . . 1 14 . . . . 18 23 . . 4 Fabricators 11 | . . . . 1 . . . . . 5 . . . 4 . . . . . . 1 . . . Repair Stations 14 | . 4 . 3 4 . . . . . . . . . . 3 . . . . . . . . . Recycling Units 3 | . 2 . 1 . . . . . . . . . . . . . . . . . . . . . Scanalyzers 28 | . . . 2 . . . . . . 3 . . . . 15 . . . . . 5 . 3 . Garrison Access 10 | . . . 2 3 . . . . 1 . . . . . 1 . . . . . . . 3 . Terminal Hacks 79 | . 2 . 4 1 2 13 . . 1 12 1 6 17 1 3 1 . 6 . 4 3 . . 2 Record 10 | . . . . . . . . . . . . 5 5 . . . . . . . . . . . Part Schematic 6 | . . . . . . . . . . 2 . . 4 . . . . . . . . . . . Robot Analysis 5 | . 1 . . . . . . . . . . . 4 . . . . . . . . . . . Prototype ID Bank 12 | . 1 . . . . . . . . 1 . . 4 . . . . 5 . 1 . . . . Open Door 18 | . . . . . 1 10 . . . . 1 1 . 1 . 1 . 1 . . 1 . . 1 Level Access Points 2 | . . . . . . . . . . . . . . . . . . . . . 1 . . 1 Branch Access Points 3 | . . . 1 . . . . . . 1 . . . . . . . . . 1 . . . . Terminal Index 6 | . . . 1 1 1 . . . 1 1 . . . . 1 . . . . . . . . . Fabricator Index 2 | . . . . . . . . . . 1 . . . . . . . . . 1 . . . . Alert Level 4 | . . . . . . 1 . . . 1 . . . . 1 . . . . . 1 . . . Unreport Threat 3 | . . . . . . 1 . . . 1 . . . . 1 . . . . . . . . . Locate Traps 2 | . . . . . . 1 . . . 1 . . . . . . . . . . . . . . Security Status 1 | . . . . . . . . . . 1 . . . . . . . . . . . . . . Patrol Status 1 | . . . . . . . . . . 1 . . . . . . . . . . . . . . Registered Components 3 | . . . 2 . . . . . . 1 . . . . . . . . . . . . . . Zone Layout 1 | . . . . . . . . . . . . . . . . . . . . 1 . . . . Fabricator Hacks 6 | . . . . . . . . . . 4 . . . 2 . . . . . . . . . . Network Status 2 | . . . . . . . . . . 2 . . . . . . . . . . . . . . Load Schematic 2 | . . . . . . . . . . 1 . . . 1 . . . . . . . . . . Build 2 | . . . . . . . . . . 1 . . . 1 . . . . . . . . . . Repair Station Hacks 9 | . 4 . 1 2 . . . . . . . . . . 2 . . . . . . . . . Scan Component 6 | . 2 . 1 2 . . . . . . . . . . 1 . . . . . . . . . Repair 3 | . 2 . . . . . . . . . . . . . 1 . . . . . . . . . Recycling Unit Hacks . | . . . . . . . . . . . . . . . . . . . . . . . . . Scanalyzer 20 | . . . 1 . . . . . . 1 . . . . 12 . . . . . 5 . 1 . Insert Component 3 | . . . . . . . . . . . . . . . 3 . . . . . . . . . Analyze 5 | . . . . . . . . . . . . . . . 5 . . . . . . . . . Retrieve Study 12 | . . . 1 . . . . . . 1 . . . . 4 . . . . . 5 . 1 . Garrison Access Hacks 3 | . . . 1 1 . . . . . . . . . . 1 . . . . . . . . . Seal Access 3 | . . . 1 1 . . . . . . . . . . 1 . . . . . . . . . Unauthorized Hacks 42 | . 10 . 6 3 3 5 . . 5 5 . . . . 3 . . . . 1 1 . . . Terminals 38 | . 8 . 5 3 3 5 . . 5 4 . . . . 3 . . . . 1 1 . . . Track 1 | . . . . . . 1 . . . . . . . . . . . . . . . . . . Assimilate 1 | . . . . . . . . . . . . . . . 1 . . . . . . . . . Botnet 22 | . 2 . 3 3 2 4 . . 1 3 . . . . 2 . . . . 1 1 . . . Operators 3 | . . . 1 . 1 . . . . 1 . . . . . . . . . . . . . . Skim 7 | . 6 . 1 . . . . . . . . . . . . . . . . . . . . . Sabotage 4 | . . . . . . . . . 4 . . . . . . . . . . . . . . . Fabricators 1 | . . . . . . . . . . 1 . . . . . . . . . . . . . . Liberate 1 | . . . . . . . . . . 1 . . . . . . . . . . . . . . Repair Stations . | . . . . . . . . . . . . . . . . . . . . . . . . . Recycling Units 3 | . 2 . 1 . . . . . . . . . . . . . . . . . . . . . Tunnel 3 | . 2 . 1 . . . . . . . . . . . . . . . . . . . . . Scanalyzers . | . . . . . . . . . . . . . . . . . . . . . . . . . Garrison Access . | . . . . . . . . . . . . . . . . . . . . . . . . . Data Cores Recovered 1 | . . . . . . . . . . . . . . . . . . . . 1 . . . . Used 1 | . . . . . . . . . . . . . . . . . . . . 1 . . . . Hacking Detections 74 | . 8 . 9 12 2 13 1 . 4 6 . . . 1 5 . . . . 2 7 . 3 1 Full Trace Events 8 | . . . 1 4 . . . . . 1 . . . 1 . . . . . . 1 . . . Feedback Events . | . . . . . . . . . . . . . . . . . . . . . . . . . Feedback Blocked . | . . . . . . . . . . . . . . . . . . . . . . . . . Robot Schematics Acquired 2 | . . . . . . . . . . . . . . . . . . . . . 2 . . . Robots Built . | . . . . . . . . . . . . . . . . . . . . . . . . . Authchips . | . . . . . . . . . . . . . . . . . . . . . . . . . Time . | . . . . . . . . . . . . . . . . . . . . . . . . . Total Robot Build Rating . | . . . . . . . . . . . . . . . . . . . . . . . . . Part Schematics Acquired 10 | . . . . . . . . . . 2 . . 4 . 2 . . . . . 2 . . . Parts Built 2 | . . . . . . . . . . 1 . . . 1 . . . . . . . . . . Authchips . | . . . . . . . . . . . . . . . . . . . . . . . . . Time 221 | . . . . . . . . . . 128 . . . 93 . . . . . . . . . . Total Part Build Rating 15 | . . . . . . . . . . 8 . . . 7 . . . . . . . . . . Part Studies Acquired 12 | . . . 1 . . . . . . 1 . . . . 4 . . . . . 5 . 1 . Parts Repaired 3 | . 2 . . . . . . . . . . . . . 1 . . . . . . . . . Time 108 | . 52 . . . . . . . . . . . . . 56 . . . . . . . . . Parts Recycled . | . . . . . . . . . . . . . . . . . . . . . . . . . Recycled Matter . | . . . . . . . . . . . . . . . . . . . . . . . . . Retrieved Matter . | . . . . . . . . . . . . . . . . . . . . . . . . . Retrieved Components . | . . . . . . . . . . . . . . . . . . . . . . . . . Parts Scanalyzed 2 | . . . . . . . . . . . . . . . 2 . . . . . . . . . Part Schematics Acquired 2 | . . . . . . . . . . . . . . . 2 . . . . . . . . . Parts Damaged . | . . . . . . . . . . . . . . . . . . . . . . . . . Bothacking | -11 -10 -10 -8 -7 -6 -6 -6 -6 -6 -5 -5 -5 -5 -4 -4 -4 -4 -4 -3 -3 -3 -2 -1 -1 ------------ Run | Yrd Mat Sub Mat Fac Fac Ext Cet Arc Hub Fac Upp Upp Zhi Pro Fac Upp Upp War Pro Res Tes Res Acc Com Used RIF Installer . | . . . . . . . . . . . . . . . . . . . . . . . . . Robots Hacked 2 | . . . . . . . . . . . . . . . . . . 2 . . . . . . Non-combat . | . . . . . . . . . . . . . . . . . . . . . . . . . Combat 2 | . . . . . . . . . . . . . . . . . . 2 . . . . . . Robot Hacks Applied 2 | . . . . . . . . . . . . . . . . . . 2 . . . . . . parse_system 2 | . . . . . . . . . . . . . . . . . . 2 . . . . . . Relay Couplers Released 7 | . . . . . . . . . 2 . . . . . . . . . . . 2 3 . . Machine Destruction 7 | . . . . . . . . . 2 . . . . . . . . . . . 2 3 . . Fabnet Peak Effective % . | . . . . . . . . . . . . . . . . . . . . . . . . . Robots Rewired 24 | . . . . . . 8 . . . . . . . 11 . . . 5 . . . . . . Allies Hacked 3 | . . . . . . . . . . . . . . . 3 . . . . . . . . . Hacks Repelled . | . . . . . . . . . . . . . . . . . . . . . . . . . Allies | -11 -10 -10 -8 -7 -6 -6 -6 -6 -6 -5 -5 -5 -5 -4 -4 -4 -4 -4 -3 -3 -3 -2 -1 -1 -------- Run | Yrd Mat Sub Mat Fac Fac Ext Cet Arc Hub Fac Upp Upp Zhi Pro Fac Upp Upp War Pro Res Tes Res Acc Com Total Allies 47 | . . . . . . 23 5 . . . . . . 11 . . . 5 . . . . 3 . Largest Group 18 | . . . . . . 14 18 15 12 . . . . 9 7 . . 5 . . . . 3 . Highest-Rated Group 975 | . . . . . . 536 975 828 617 . . . . 364 340 . . 285 . . . . 379 . Highest-Rated Ally 159 | . . . . . . 159 159 159 96 . . . . 68 68 . . 68 . . . . 135 . Total Orders 14 | . . . . . . . 4 . . . . . . . 1 . . 5 . . . . 4 . STAY 7 | . . . . . . . 3 . . . . . . . . . . 4 . . . . . . FOLLOW 1 | . . . . . . . 1 . . . . . . . . . . . . . . . . . RETURN 6 | . . . . . . . . . . . . . . . 1 . . 1 . . . . 4 . Ally Attacks 406 | . . . . . . 94 76 27 43 . . . . 66 26 . . 34 . . . . 40 . Total Damage 12476 | . . . . . . 1859 1924 682 1342 . . . . 1378 1739 . . 1998 . . . . 1554 . Kills 69 | . . . . . . 13 8 3 8 . . . . 7 11 . . 13 . . . . 6 . Allies Corrupted 4 | . . . . . . . . . 2 . . . . . 1 . . . . . . . 1 . Allies Melted 4 | . . . . . . 1 . . . . . . . . . . . 1 . . . 2 . . Intel | -11 -10 -10 -8 -7 -6 -6 -6 -6 -6 -5 -5 -5 -5 -4 -4 -4 -4 -4 -3 -3 -3 -2 -1 -1 ------- Run | Yrd Mat Sub Mat Fac Fac Ext Cet Arc Hub Fac Upp Upp Zhi Pro Fac Upp Upp War Pro Res Tes Res Acc Com Active Infowar (turns) 22323 | 23 1867 133 2350 2040 809 765 . 109 240 1207 944 1149 288 1601 989 1134 803 1513 379 624 1606 1012 644 94 Optics 3 | . . . . . . . . . . . . . . . . . . 2 . . 1 . . . Sensors 10505 | . . . . 1172 . . . . 134 865 897 1145 245 409 639 1124 758 832 379 387 1049 . 465 5 IFF 1813 | . . . . . . 17 . 109 106 1204 377 . . . . . . . . . . . . . Terrain 1132 | . . . . . . . . . . . 479 109 . . . . . . . 429 58 57 . . Seismic 6798 | 23 1867 133 2350 868 809 748 . . . . . . . . . . . . . . . . . . T.N.C. 1 | . . . . . . . . . . 1 . . . . . . . . . . . . . . Machine Analysis 13244 | . . . . . . . . . . 1203 944 1149 288 1601 989 1134 803 1513 379 624 1606 1011 . . Cloaking 783 | . . . . . . . . . . . . . . . . . . . 340 443 . . . . Jamming 3618 | . . . . . . . . . . . . . . . . . 12 . . 602 1254 1012 644 94 Robot Analysis Total 5 | . 1 . . . . . . . . . . . 4 . . . . . . . . . . . Derelict Logs Recovered 9 | . . 1 . . . . . . . . 1 2 . 2 . 3 . . . . . . . . Drone Launches 12 | . . . . . . . . . . . . . . . 2 . . 1 . . . . 9 . Drone Recoveries 10 | . . . . . . . . . . . . . . . 2 . . 1 . . . . 7 . Exploration | -11 -10 -10 -8 -7 -6 -6 -6 -6 -6 -5 -5 -5 -5 -4 -4 -4 -4 -4 -3 -3 -3 -2 -1 -1 ------------- Run | Yrd Mat Sub Mat Fac Fac Ext Cet Arc Hub Fac Upp Upp Zhi Pro Fac Upp Upp War Pro Res Tes Res Acc Com Turns Passed 26263 | 127 1922 395 2431 3012 818 1225 602 409 296 1207 944 1149 288 1601 989 1134 803 1513 379 624 1606 1012 644 1133 Spaces Moved 14852 | 56 905 275 1247 1504 524 699 225 150 167 576 539 689 161 710 645 862 638 1052 277 373 945 656 405 572 Core 8 | 2 . . 6 . . . . . . . . . . . . . . . . . . . . . Treads 5905 | 54 905 78 834 968 . . 176 150 167 576 477 689 159 672 . . . . . . . . . . Legs 7676 | . . . . 48 524 699 49 . . . . . . 38 645 862 638 1052 277 373 945 549 405 572 Wheels 1263 | . . 197 407 488 . . . . . . 62 . 2 . . . . . . . . 107 . . Hover . | . . . . . . . . . . . . . . . . . . . . . . . . . Flight . | . . . . . . . . . . . . . . . . . . . . . . . . . Fastest Speed 50 | 50 160 120 80 130 124 114 120 160 160 160 130 160 130 120 114 114 114 108 112 112 101 105 105 105 Average Speed 134 | 156 160 131 144 160 124 120 152 160 160 160 157 160 159 158 118 114 114 111 112 113 114 124 105 105 Slowest Speed 400 | 160 160 160 400 240 125 188 240 160 160 160 160 160 160 163 190 114 116 114 112 116 250 245 175 106 Overloaded Moves . | . . . . . . . . . . . . . . . . . . . . . . . . . Propulsion Burnouts . | . . . . . . . . . . . . . . . . . . . . . . . . . Robots Hopped . | . . . . . . . . . . . . . . . . . . . . . . . . . Potential Cave-ins 20 | . . . . . . 8 . . . . . 4 . . . 2 . 1 . . 1 . 4 . Cave-ins Triggered 1 | . . . . . . . . . . . . . . . . . . . . . 1 . . . Exploration Rate (%) 50 | 4 97 23 85 42 12 63 75 81 23 20 63 85 60 66 19 90 71 87 57 13 71 25 15 13 Regions Visited 24 Branch Regions 15 Pre-discovered Areas 8 | . 2 . 1 . . . . . . . . 1 3 1 . . . . . . . . . . Known Exits Taken 17 | . 1 . . 1 . . . . 1 1 1 1 1 1 1 1 1 1 1 1 1 1 1 . Unknown Exits Taken 7 | 1 . 1 1 . 1 1 1 1 . . . . . . . . . . . . . . . . Scrap Searched 12 | . . . . . . . . . . . 3 2 . . . 3 . . 4 . . . . . Spaces Dug 333 | . . . 22 11 . 34 . . 4 13 . 8 . 57 49 15 . 2 52 10 32 4 16 4 Terrain Destroyed 1258 | . . . 112 126 1 88 . 8 4 61 30 15 . 142 59 94 114 23 74 45 78 43 97 44 Melee 10 | . . . 1 5 . . . . 4 . . . . . . . . . . . . . . . Projectile 394 | . . . 12 8 1 2 . 8 . 55 30 15 . 16 15 44 3 10 17 24 78 9 29 18 AOE 854 | . . . 99 113 . 86 . . . 6 . . . 126 44 50 111 13 57 21 . 34 68 26 Terrain Rammed . | . . . . . . . . . . . . . . . . . . . . . . . . . Walls Destroyed . | . . . . . . . . . . . . . . . . . . . . . . . . . Machines Disabled . | . . . . . . . . . . . . . . . . . . . . . . . . . Actions | -11 -10 -10 -8 -7 -6 -6 -6 -6 -6 -5 -5 -5 -5 -4 -4 -4 -4 -4 -3 -3 -3 -2 -1 -1 --------- Run | Yrd Mat Sub Mat Fac Fac Ext Cet Arc Hub Fac Upp Upp Zhi Pro Fac Upp Upp War Pro Res Tes Res Acc Com Total 19743 | 74 1229 288 1681 1867 641 1009 467 271 187 749 592 723 194 1051 832 959 689 1384 341 528 1454 873 618 1042 Wait 1783 | 1 194 . 158 94 21 102 197 86 2 67 18 15 . 143 111 41 25 132 23 50 106 3 39 155 Move 14828 | 55 904 274 1246 1503 523 698 224 149 166 575 538 688 160 709 644 861 637 1051 276 372 944 655 404 572 Hop . | . . . . . . . . . . . . . . . . . . . . . . . . . Pick Up 285 | 2 21 . 29 33 20 18 6 3 2 7 3 1 7 13 12 . . 12 4 9 30 21 11 21 Fast Attach 213 | 7 2 1 23 17 4 3 4 3 . 4 4 3 10 10 7 1 2 22 3 10 29 21 9 14 Attach 164 | . 2 . 7 10 12 5 1 . 1 2 1 1 1 7 4 . 1 7 1 3 28 13 19 38 Detach 69 | . . . 3 . 3 1 . 1 . 2 . 3 . 3 2 . . 7 . 1 10 12 14 7 Swap 346 | . 10 2 43 66 8 21 7 3 8 24 5 2 1 18 15 5 9 15 7 14 32 19 7 5 Drop 411 | . 15 1 58 32 19 25 17 4 3 8 5 4 15 19 16 1 2 33 7 16 42 45 16 8 Fire 1439 | 9 79 10 106 103 31 41 11 22 . 60 18 6 . 66 21 50 13 105 20 52 212 84 98 222 Melee 16 | . . . 1 7 . . . . 4 . . . . . . . . . . . 4 . . . Ram . | . . . . . . . . . . . . . . . . . . . . . . . . . Kick 6 | . . . . . . . . . . . . . . . . . . . . 1 4 . 1 . Crush 12 | . 2 . 7 2 . . . . 1 . . . . . . . . . . . . . . . Escape Stasis 13 | . . . . . . . . . . . . . . . . . . . . . 13 . . . Rewire 158 | . . . . . . 95 . . . . . . . 63 . . . . . . . . . . Trap . | . . . . . . . . . . . . . . . . . . . . . . . . . Miscellaneous . | . . . . . . . . . . . . . . . . . . . . . . . . . Route ------- -11/Scrapyard -10/Materials (discovered 5 exits: [*Mat x3] / [*Min] / *Sub) -10/Subcaves (discovered 2 exits: *Mat / Rec) -8/Materials (discovered 3 exits: *Fac x3) -7/Factory (discovered 3 exits: *Fac x2 / *Low) -6/Factory (discovered 2 exits: [*Low] / *Ext) -6/Extension (discovered 2 exits: *Fac / *Cet) -6/Cetus (discovered 2 exits: *Fac / [*Arc]) -6/Archives (discovered 3 exits: *Fac / *Hub x2) -6/Hub_04(d) -5/Factory (discovered 2 exits: *Upp x2) -5/Upper Caves -5/Upper Caves (discovered 2 exits: *Fac / *Zhi) -5/Zhirov -4/Proximity Caves -4/Factory (discovered 2 exits: Res / *Upp) -4/Upper Caves -4/Upper Caves (discovered 2 exits: *Res / *War) -4/Warlord -3/Proximity Caves -3/Research (discovered 3 exits: *Res / *Tes x2) -3/Testing -2/Research (discovered 2 exits: *Acc / Qua) -1/Access (discovered 2 exits: Sur / *Com) -1/Command (discovered 2 exits: Sur x2) History --------- Turn | Location | Event 10 | -11/Scrapyard | Discovered new exit (range 15) 128 | -11/Scrapyard | Entered Materials 300 | -10/Materials | Build established: Mutant 354 | -10/Materials | Discovered new exit (range 6) 484 | -10/Materials | Discovered new exit (range 11) 884 | -10/Materials | Repaired Lgt. Treads 912 | -10/Materials | Repaired Lgt. Treads 939 | -10/Materials | Discovered new exit (range 6) 1028 | -10/Materials | Derelicts attacked the area 1403 | -10/Materials | Core integrity fell below 50% 1557 | -10/Materials | Discovered new exit (range 12) 1613 | -10/Materials | Learned 4 Recycling zone layouts 1674 | -10/Materials | Learned Storage trap positions 1766 | -10/Materials | Learned location of 1 exit from Storage 1798 | -10/Materials | Learned Materials emergency access door positions 1818 | -10/Materials | Learned location of 2 exits from Mines 1843 | -10/Materials | Learned Storage trap positions 1869 | -10/Materials | Identified exit to Subcaves 1903 | -10/Materials | Learned Materials stockpile data 2050 | -10/Materials | Entered Subcaves 2068 | -10/Subcaves | Identified exit to Recycling 2384 | -10/Subcaves | Discovered new exit (range 9) 2445 | -10/Subcaves | Entered Materials 2445 | -8/Materials | Evolved 4 slots: Propulsion x1, Utility x2, Weapon x1 2596 | -8/Materials | Destroyed 8 combat bots 2748 | -8/Materials | Build established: Scavenger-Gunner 3155 | -8/Materials | Lost 6 parts (1p3n1u1w) 3309 | -8/Materials | Central database locked down 3503 | -8/Materials | Discovered new exit (range 16) 4162 | -8/Materials | Discovered new exit (range 3) 4764 | -8/Materials | Discovered new exit (range 9) 4845 | -8/Materials | First assault squad dispatched 4876 | -8/Materials | Entered Factory 4876 | -7/Factory | Evolved 2 slots: Propulsion x1, Utility x1 5798 | -7/Factory | Discovered new exit (range 9) 5838 | -7/Factory | Garrison activated, responded to threat 5892 | -7/Factory | Identified exit to Lower Caves 6082 | -7/Factory | Discovered new exit (range 9) 6142 | -7/Factory | Identified exit to Factory 6894 | -7/Factory | Lost 3 parts (2n1w) 7087 | -7/Factory | Lost 3 parts (1n2w) 7676 | -7/Factory | First assault squad dispatched 7741 | -7/Factory | Discovered exit to Factory (range 5) 7888 | -7/Factory | Entered another Factory area 7888 | -6/Factory | Evolved 2 slots: Propulsion x1, Utility x1 8257 | -6/Factory | Lost 5 parts (1p2n1u1w) 8355 | -6/Factory | Discovered new exit (range 6) 8644 | -6/Factory | Discovered new exit (range 13) 8706 | -6/Factory | Entered Extension 8905 | -6/Extension | Rescued a captive Derelict 8906 | -6/Extension | Rescued a captive Derelict 8927 | -6/Extension | Rescued a captive Derelict 8932 | -6/Extension | Rescued a captive Derelict 8964 | -6/Extension | Rescued a captive Derelict 8965 | -6/Extension | Rescued a captive Derelict 9085 | -6/Extension | Rescued a captive Derelict 9088 | -6/Extension | Rescued a captive Derelict 9236 | -6/Extension | Lost 6 allies 9419 | -6/Extension | Rescued a captive Derelict 9436 | -6/Extension | Rescued a captive Derelict 9505 | -6/Extension | Lost 3 parts (1n2u) 9604 | -6/Extension | Rescued a captive Derelict 9607 | -6/Extension | Rescued a captive Derelict 9632 | -6/Extension | Rescued A7 9657 | -6/Extension | Rescued a captive Derelict 9788 | -6/Extension | Rescued a captive Derelict 9821 | -6/Extension | Discovered new exit (range 10) 9822 | -6/Extension | Discovered new exit (range 6) 9931 | -6/Extension | Entered Cetus 9931 | -6/Cetus | Accompanied by 14 allies (A7) 9936 | -6/Cetus | Acquired a Cetus Manufacturing Module code from A7 9946 | -6/Cetus | Spotted Cetus Guard 9947 | -6/Cetus | Spotted Cetus Guard 9948 | -6/Cetus | Spotted Cetus Guard 9950 | -6/Cetus | Spotted Cetus Guard 9953 | -6/Cetus | Allies destroyed Cetus Guard 9959 | -6/Cetus | Destroyed Cetus Guard 9961 | -6/Cetus | Allies destroyed Cetus Guard 9966 | -6/Cetus | Destroyed Cetus Guard 10093 | -6/Cetus | Started Cetus Manufacturing Module 10117 | -6/Cetus | Build established: Commander-Tank 10118 | -6/Cetus | Manufactured an Enhanced Grunt 10128 | -6/Cetus | Escorted A7 to Cetus Mainframe 10143 | -6/Cetus | Manufactured an Enhanced Grunt 10150 | -6/Cetus | Discovered new exit (range 16) 10168 | -6/Cetus | Manufactured an Enhanced Grunt 10193 | -6/Cetus | Manufactured an Enhanced Grunt 10218 | -6/Cetus | Manufactured an Enhanced Grunt 10319 | -6/Cetus | Spotted Cetus Guard 10319 | -6/Cetus | Spotted Cetus Guard 10320 | -6/Cetus | Spotted Cetus Guard 10322 | -6/Cetus | Spotted Cetus Guard 10331 | -6/Cetus | Destroyed Cetus Guard 10341 | -6/Cetus | Destroyed Cetus Guard 10342 | -6/Cetus | Allies destroyed Cetus Guard 10348 | -6/Cetus | Allies destroyed Cetus Guard 10351 | -6/Cetus | Discovered new exit (range 16) 10365 | -6/Cetus | Met Revision 17 10383 | -6/Cetus | Lost 3 allies 10533 | -6/Cetus | Entered Archives 10533 | -6/Archives | Accompanied by 15 allies (A7) 10538 | -6/Archives | Received a hacking code to weaken MAIN.C 10589 | -6/Archives | Discovered new exit (range 16) 10713 | -6/Archives | Discovered new exit (range 14) 10788 | -6/Archives | Discovered new exit (range 14) 10942 | -6/Archives | Entered Hub_04(d) 10942 | -6/Hub_04(d) | Accompanied by 12 allies 11049 | -6/Hub_04(d) | Discovered new exit (range 5) 11054 | -6/Hub_04(d) | Identified exit to Factory 11082 | -6/Hub_04(d) | Network Hub disabled 11168 | -6/Hub_04(d) | Network Hub disabled 11193 | -6/Hub_04(d) | Lost 10 allies 11205 | -6/Hub_04(d) | Network Hub disabled 11230 | -6/Hub_04(d) | Spotted Lightning 11238 | -6/Hub_04(d) | Entered Factory 11238 | -5/Factory | Evolved 2 slots: Utility x2 11473 | -5/Factory | Identified exit to Upper Caves 11641 | -5/Factory | Build established: Scavenger-Skirmisher 12065 | -5/Factory | Watched by a mysterious "MATRIX" hacker. 12193 | -5/Factory | Fabricated Fusion Bomb Launcher? 12445 | -5/Factory | Entered Upper Caves 13188 | -5/Upper Caves | Discovered new exit (range 15) 13190 | -5/Upper Caves | Encountered a Warlord checkpoint 13207 | -5/Upper Caves | Identified exit to Upper Caves 13231 | -5/Upper Caves | Learned location of 1 exit from Factory 13389 | -5/Upper Caves | Entered another Upper Caves area 13434 | -5/Upper Caves | Learned Factory garrison access intel 13459 | -5/Upper Caves | Entered an active Warlord outpost 13473 | -5/Upper Caves | Learned Factory trap positions 13473 | -5/Upper Caves | Learned Armory terminal intel 13473 | -5/Upper Caves | Learned Research garrison access intel 13569 | -5/Upper Caves | Discovered new exit (range 6) 13580 | -5/Upper Caves | Identified exit to Factory 13803 | -5/Upper Caves | Build established: Scavenger-Tank 13851 | -5/Upper Caves | Learned Factory emergency access door positions 14252 | -5/Upper Caves | Encountered a Warlord checkpoint 14303 | -5/Upper Caves | Discovered new exit (range 7) 14311 | -5/Upper Caves | Identified exit to Zhirov 14538 | -5/Upper Caves | Entered Zhirov 14540 | -5/Zhirov | Discovered new exit (range 3) 14545 | -5/Zhirov | Identified exit to Proximity Caves 14569 | -5/Zhirov | Met Zhirov 14604 | -5/Zhirov | Learned location of Quarantine (-2) 14604 | -5/Zhirov | Learned location of Command (-1) 14614 | -5/Zhirov | Zhirov requested help retrieving the SGEMP Prototype 14638 | -5/Zhirov | Found Alien Artifact 14638 | -5/Zhirov | Identified Integrated Dissipator 14638 | -5/Zhirov | Installed Integrated Dissipator, increased core heat dissipation (+20) 14661 | -5/Zhirov | Found Alien Artifact 14826 | -5/Zhirov | Entered Proximity Caves 14907 | -4/Proximity Caves | Attracted the attention of an 0b10 checkpoint 15019 | -4/Proximity Caves | Learned Research terminal intel 15219 | -4/Proximity Caves | Destroyed 9 combat bots 15409 | -4/Proximity Caves | Attracted the attention of an 0b10 base 15453 | -4/Proximity Caves | Destroyed 7 combat bots 15484 | -4/Proximity Caves | Snuck into a huge 0b10 base via the rear entrance 15855 | -4/Proximity Caves | Discovered exit to Factory (range 8) 16226 | -4/Proximity Caves | Build established: Commander-Tank 16248 | -4/Proximity Caves | Fabricated Assault Drone Bay (x1) 16427 | -4/Proximity Caves | Entered Factory 16427 | -4/Factory | Accompanied by 7 allies 16427 | -4/Factory | Evolved 2 slots: Power x1, Utility x1 16428 | -4/Factory | Identified exit to Research 16429 | -4/Factory | Loaded intel: 89 trap records 16431 | -4/Factory | Loaded intel: 3 garrison access locations 16750 | -4/Factory | Central database locked down 16866 | -4/Factory | P-70 Sage assimilated allied Beamer 7b 16868 | -4/Factory | P-70 Sage assimilated allied Swordsman 7d 16976 | -4/Factory | Repaired Mak. Heavy Armor Plating 17092 | -4/Factory | Discovered new exit (range 8) 17099 | -4/Factory | Identified exit to Upper Caves 17311 | -4/Factory | Found Quantum Capacitor 17416 | -4/Factory | Entered Upper Caves 17659 | -4/Upper Caves | Build established: Skirmisher 17745 | -4/Upper Caves | Learned Research stockpile data 18345 | -4/Upper Caves | Discovered new exit (range 13) 18396 | -4/Upper Caves | Identified exit to Upper Caves 18550 | -4/Upper Caves | Entered another Upper Caves area 18706 | -4/Upper Caves | Encountered a Warlord checkpoint 18734 | -4/Upper Caves | Discovered exit to Research (range 3) 18813 | -4/Upper Caves | Attracted the attention of an 0b10 checkpoint 19130 | -4/Upper Caves | Discovered new exit (range 7) 19137 | -4/Upper Caves | Identified exit to Warlord 19353 | -4/Upper Caves | Entered Warlord 19915 | -4/Warlord | Build established: Commander-Skirmisher 19949 | -4/Warlord | Visited the Vortex Lab 19953 | -4/Warlord | Found Prototype Energy Gun 19953 | -4/Warlord | Identified Vortex Shotgun 19959 | -4/Warlord | Found Prototype Energy Gun 19959 | -4/Warlord | Identified Vortex Rail 19965 | -4/Warlord | Warlord's base attacked by MAIN.C 20021 | -4/Warlord | Found Vortex Shotgun 20051 | -4/Warlord | Found Prototype Reactor 20051 | -4/Warlord | Identified Vortex Chain Reactor 20057 | -4/Warlord | Found Prototype Processor 20057 | -4/Warlord | Identified Spectral Analyzer 20202 | -4/Warlord | Warlord forces counterattacked 20216 | -4/Warlord | Lost 6 allies 20271 | -4/Warlord | Spotted Striker 20302 | -4/Warlord | Spotted Executioner 20320 | -4/Warlord | Destroyed Executioner 20332 | -4/Warlord | Found Prototype Device 20332 | -4/Warlord | Identified Adv. Kinecellerator 20352 | -4/Warlord | Lost 25 allies 20370 | -4/Warlord | Spotted Striker 20374 | -4/Warlord | Spotted Striker 20402 | -4/Warlord | Lost 4 allies 20483 | -4/Warlord | Spotted Striker 20609 | -4/Warlord | Spotted Striker 20617 | -4/Warlord | Destroyed Striker 20630 | -4/Warlord | Spotted Executioner 20640 | -4/Warlord | Warlord base infiltrated, sounded retreat 20646 | -4/Warlord | Destroyed Executioner 20681 | -4/Warlord | Met Warlord 20707 | -4/Warlord | Lost 9 allies 20793 | -4/Warlord | Spotted Striker 20853 | -4/Warlord | Discovered new exit (range 12) 20856 | -4/Warlord | Lost 9 allies 20863 | -4/Warlord | Identified exit to Proximity Caves 20866 | -4/Warlord | Entered Proximity Caves 20942 | -3/Proximity Caves | Spotter reported a threat 21133 | -3/Proximity Caves | Build established: Scavenger-Skirmisher 21234 | -3/Proximity Caves | Discovered exit to Research (range 8) 21245 | -3/Proximity Caves | Entered Research 21245 | -3/Research | Evolved 2 slots: Utility x2 21246 | -3/Research | Identified exit to Testing 21248 | -3/Research | Loaded intel: 23 terminal locations 21249 | -3/Research | Loaded intel: 4 garrison access locations 21277 | -3/Research | Discovered new exit (range 11) 21296 | -3/Research | Identified exit to Research 21445 | -3/Research | Revision forces began assault on 0b10 21512 | -3/Research | Met up with Revision 17++ 21517 | -3/Research | Build established: Derelict-Skirmisher 21869 | -3/Research | Entered Testing 22130 | -3/Testing | Found Prototype Protection 22142 | -3/Testing | Identified Hvy. Regenerative Plating 22262 | -3/Testing | Found Fusion Bomb Launcher 22293 | -3/Testing | Found Prototype Protection 22293 | -3/Testing | Identified Centrium Heavy Armor Plating 22314 | -3/Testing | Spotted Striker 22325 | -3/Testing | Spotted Striker 22501 | -3/Testing | Spotted Alpha 7 22534 | -3/Testing | Destroyed Striker 22566 | -3/Testing | Destroyed Striker 22617 | -3/Testing | Destroyed Alpha 7 22626 | -3/Testing | Found Prototype Processor 22626 | -3/Testing | Identified Exp. Targeting Computer 22631 | -3/Testing | Found Prototype Ballistic Gun 22631 | -3/Testing | Identified Multirail 22644 | -3/Testing | Lost 13 parts (2p7n2u2w) 22708 | -3/Testing | Stole the SGEMP Prototype 22912 | -3/Testing | Found Prototype Hackware 22912 | -3/Testing | Identified Exp. System Shield 23269 | -3/Testing | Crushed by falling debris 23270 | -3/Testing | System corruption reached 10% 23392 | -3/Testing | Scanned by Researcher 23437 | -3/Testing | Core integrity fell below 50% 23475 | -3/Testing | Entered Research 23475 | -2/Research | Warlord forces began assault on 0b10 23475 | -2/Research | Evolved 2 slots: Utility x2 23476 | -2/Research | Identified exit to Quarantine 23505 | -2/Research | Lost 4 parts (1p1n1u1w) 23585 | -2/Research | Research machine network offline 23873 | -2/Research | System corruption reached 10% 23976 | -2/Research | Borebot progress halted 24065 | -2/Research | Found Prototype Processor 24065 | -2/Research | Identified Exp. Melee Analysis Suite 24097 | -2/Research | Met up with Warlord 24115 | -2/Research | Build established: Scavenger-Mutant 24212 | -2/Research | Spotted Striker 24238 | -2/Research | Destroyed Warlord 24240 | -2/Research | Warlord destroyed during the assault 24244 | -2/Research | Destroyed Striker 24255 | -2/Research | Borebot progress halted 24334 | -2/Research | Borebot progress halted 24425 | -2/Research | Discovered new exit (range 3) 24427 | -2/Research | Identified exit to Access 24487 | -2/Research | Entered Access 24487 | -1/Access | Evolved 2 slots: Utility x2 24488 | -1/Access | Delivered the SGEMP Prototype to Zhirov 24488 | -1/Access | Zhirov transferred Access data 24489 | -1/Access | Loaded intel: 127 machine locations 24489 | -1/Access | Loaded intel: 88 trap records 24489 | -1/Access | Identified exit to Surface 24489 | -1/Access | Discovered exit to Surface (range 195) 24489 | -1/Access | Identified exit to Command 24489 | -1/Access | Discovered exit to Command (range 155) 24566 | -1/Access | Build established: Mutant 24609 | -1/Access | Zhirov warped through subspace 24652 | -1/Access | Destroyed 7 combat bots 25131 | -1/Access | Entered Command 25214 | -1/Command | Found Quantum Capacitor 25355 | -1/Command | Spotted M Guard 25357 | -1/Command | Spotted Combat Programmer 25357 | -1/Command | Spotted Combat Programmer 25359 | -1/Command | Spotted M Guard 25376 | -1/Command | Destroyed Combat Programmer 25385 | -1/Command | Destroyed Combat Programmer 25400 | -1/Command | Destroyed M Guard 25428 | -1/Command | Destroyed M Guard 25428 | -1/Command | All MAIN.C guards destroyed 25459 | -1/Command | Lost 5 parts (1p1n3u) 25464 | -1/Command | Spotted B-99 Colossus 25508 | -1/Command | Lost 3 parts (1p1u1w) 25535 | -1/Command | Destroyed B-99 Colossus 25558 | -1/Command | Lost 3 parts (1p2w) 25590 | -1/Command | System corruption reached 10% 25631 | -1/Command | First assault squad dispatched 25643 | -1/Command | Destroyed 9 combat bots 25647 | -1/Command | Lost 7 parts (4n2u1w) 25721 | -1/Command | Core integrity fell below 50% 25757 | -1/Command | Lost 5 parts (2p3w) 26062 | -1/Command | Met MAIN.C 26075 | -1/Command | Build established: Scavenger-Gunner 26215 | -1/Command | System corruption reached 30% 26239 | -1/Command | Core integrity fell below 20% 26264 | -1/Command | Destroyed by MAIN.C with Heavy Quantum Rifle Last Messages --------------- 26196_ System corrupted: Component data lost. 26198_ Centrium Leg+ destroyed. 26201_ Lgt. Particle Reactor destroyed. 26208_ System corrupted: Enh. Nova Cannon failed to cycle. 26211_ Myomer Leg+ destroyed. 26212_ System corrupted: Centrium Leg+ rejected. 26212_ Acquired Centrium Leg+. 26214_ Centrium Leg+ destroyed. 26215_ Integrated Corrupted Biometal Leg (+4). 26224_ System corrupted: Cld. Phase Cannon failed to cycle. 26227_ 7UL2JLWL,: DT8O0N MXUHMN/VW47 26230_ Myomer Leg+ destroyed. 26230_ Cld. Phase Cannon destroyed. 26242_ SXV/ AUO6LI6XIR:%:CQN